[Event "FIDE Grand Swiss 2023"]
[Site "Villa Marina, Douglas, Isle of Man, Isle Of Man"]
[Date "2023.10.26"]
[Round "2.31"]
[White "Nguyen, Thai Dai Van"]
[Black "Xiong, Jeffery"]
[Result "1/2-1/2"]
[TimeControl "40/90 + 30 + 30s/move"]
[WhiteFideId "358878"]
[BlackFideId "2047640"]
[WhiteElo "2618"]
[BlackElo "2693"]

1. c4 {[%clk 01:40:53]} {[%emt 00:00:05]} c5 {[%clk 01:40:37]} {[%emt
00:00:24]} 2. Nf3 {[%clk 01:41:12]} {[%emt 00:00:10]} Nf6 {[%clk 01:41:03]}
{[%emt 00:00:05]} 3. Nc3 {[%clk 01:41:33]} {[%emt 00:00:07]} d5 {[%clk
01:40:50]} {[%emt 00:00:45]} 4. cxd5 {[%clk 01:41:55]} {[%emt 00:00:08]} Nxd5
{[%clk 01:41:17]} {[%emt 00:00:03]} 5. g3 {[%clk 01:42:02]} {[%emt 00:00:23]}
Nc6 {[%clk 01:39:27]} {[%emt 00:02:20]} 6. Bg2 {[%clk 01:42:20]} {[%emt
00:00:11]} Nc7 {[%clk 01:38:40]} {[%emt 00:01:18]} 7. a3 {[%clk 01:42:12]}
{[%emt 00:00:38]} g6 {[%clk 01:37:19]} {[%emt 00:01:49]} 8. d3 {[%clk
01:41:37]} {[%emt 00:01:07]} Bg7 {[%clk 01:36:37]} {[%emt 00:01:11]} 9. Be3
{[%clk 01:42:00]} {[%emt 00:00:07]} b6 {[%clk 01:18:40]} {[%emt 00:18:28]} 10.
h4 {[%clk 01:42:22]} {[%emt 00:00:07]} Bb7 {[%clk 01:15:49]} {[%emt 00:03:21]}
11. h5 {[%clk 01:42:07]} {[%emt 00:00:46]} Nd4 {[%clk 01:10:50]} {[%emt
00:05:29]} 12. h6 {[%clk 01:33:31]} {[%emt 00:09:06]} Nxf3+ {[%clk 01:10:33]}
{[%emt 00:00:47]} 13. Bxf3 {[%clk 01:32:53]} {[%emt 00:01:07]} Bxc3+ {[%clk
01:10:30]} {[%emt 00:00:33]} 14. bxc3 {[%clk 01:33:16]} {[%emt 00:00:07]} Bxf3
{[%clk 01:10:54]} {[%emt 00:00:07]} 15. exf3 {[%clk 01:33:40]} {[%emt
00:00:06]} Qd7 {[%clk 01:07:37]} {[%emt 00:03:47]} 16. O-O {[%clk 01:29:25]}
{[%emt 00:04:44]} Rd8 {[%clk 01:00:47]} {[%emt 00:07:21]} 17. d4 {[%clk
01:15:47]} {[%emt 00:14:08]} c4 {[%clk 00:54:02]} {[%emt 00:07:15]} 18. Qe2
{[%clk 01:14:34]} {[%emt 00:01:43]} Qc6 {[%clk 00:51:08]} {[%emt 00:03:23]} 19.
Bg5 {[%clk 01:09:26]} {[%emt 00:05:38]} Nd5 {[%clk 00:50:24]} {[%emt 00:01:14]}
20. Rfe1 {[%clk 01:06:50]} {[%emt 00:03:07]} O-O {[%clk 00:45:26]} {[%emt
00:05:28]} 21. Qc2 {[%clk 01:07:04]} {[%emt 00:00:16]} Rfe8 {[%clk 00:42:36]}
{[%emt 00:03:19]} 22. Re4 {[%clk 01:05:56]} {[%emt 00:01:39]} b5 {[%clk
00:42:36]} {[%emt 00:00:30]} 23. a4 {[%clk 01:03:47]} {[%emt 00:02:39]} a6
{[%clk 00:37:15]} {[%emt 00:05:50]} 24. Rae1 {[%clk 00:59:19]} {[%emt
00:04:59]} Qd6 {[%clk 00:37:18]} {[%emt 00:00:27]} 25. axb5 {[%clk 00:48:15]}
{[%emt 00:11:34]} axb5 {[%clk 00:37:46]} {[%emt 00:00:02]} 26. Qb2 {[%clk
00:47:51]} {[%emt 00:00:54]} Qd7 {[%clk 00:34:58]} {[%emt 00:03:18]} 27. Kg2
{[%clk 00:42:19]} {[%emt 00:06:03]} Rc8 {[%clk 00:33:36]} {[%emt 00:01:51]} 28.
Ra1 {[%clk 00:33:42]} {[%emt 00:09:07]} Ra8 {[%clk 00:31:31]} {[%emt 00:02:34]}
29. Ree1 {[%clk 00:32:26]} {[%emt 00:01:46]} f6 {[%clk 00:24:57]} {[%emt
00:07:05]} 30. Bd2 {[%clk 00:32:24]} {[%emt 00:00:32]} Qc6 {[%clk 00:24:29]}
{[%emt 00:00:57]} 31. Reb1 {[%clk 00:27:49]} {[%emt 00:05:07]} Rxa1 {[%clk
00:18:49]} {[%emt 00:06:10]} 32. Rxa1 {[%clk 00:28:16]} {[%emt 00:00:02]} Rb8
{[%clk 00:18:47]} {[%emt 00:00:31]} 33. Ra5 {[%clk 00:27:24]} {[%emt 00:01:23]}
Kf7 {[%clk 00:18:57]} {[%emt 00:00:19]} 34. Qa1 {[%clk 00:24:10]} {[%emt
00:03:44]} Qe6 {[%clk 00:18:46]} {[%emt 00:00:41]} 35. Ra8 {[%clk 00:19:18]}
{[%emt 00:05:24]} Qc8 {[%clk 00:15:06]} {[%emt 00:04:10]} 36. Rxb8 {[%clk
00:19:07]} {[%emt 00:00:41]} Qxb8 {[%clk 00:15:33]} {[%emt 00:00:01]} 37. Qa6
{[%clk 00:19:17]} {[%emt 00:00:21]} g5 {[%clk 00:08:05]} {[%emt 00:07:58]} 38.
Qc6 {[%clk 00:17:19]} {[%emt 00:02:28]} e6 {[%clk 00:07:22]} {[%emt 00:01:13]}
39. Qd7+ {[%clk 00:14:45]} {[%emt 00:03:05]} Ne7 {[%clk 00:07:37]} {[%emt
00:00:14]} 40. Bc1 {[%clk 00:14:17]} {[%emt 00:00:58]} Qe8 {[%clk 00:04:02]}
{[%emt 00:04:05]} 41. Qb7 {[%clk 00:12:48]} {[%emt 00:01:58]} Qc6 {[%clk
00:42:20]} {[%emt 00:12:13]} 42. Qa7 {[%clk 01:01:55]} {[%emt 00:01:23]} b4
{[%clk 00:42:09]} {[%emt 00:00:41]} 43. cxb4 {[%clk 00:46:22]} {[%emt
00:16:03]} g4 {[%clk 00:42:29]} {[%emt 00:00:10]} 44. Kg1 {[%clk 00:46:37]}
{[%emt 00:00:15]} gxf3 {[%clk 00:31:49]} {[%emt 00:11:10]} 45. b5 {[%clk
00:21:41]} {[%emt 00:25:27]} Qe4 {[%clk 00:25:52]} {[%emt 00:06:26]} 46. Ba3
{[%clk 00:22:06]} {[%emt 00:00:05]} Qe1+ {[%clk 00:26:11]} {[%emt 00:00:10]} 47.
Kh2 {[%clk 00:22:35]} {[%emt 00:00:02]} Qxf2+ {[%clk 00:26:34]} {[%emt
00:00:07]} 48. Kh3 {[%clk 00:23:02]} {[%emt 00:00:03]} Qg2+ {[%clk 00:26:29]}
{[%emt 00:00:34]} 49. Kg4 {[%clk 00:13:23]} {[%emt 00:10:08]} f5+ {[%clk
00:25:39]} {[%emt 00:01:21]} 50. Kf4 {[%clk 00:13:43]} {[%emt 00:00:09]} Qd2+
{[%clk 00:26:02]} {[%emt 00:00:08]} 51. Kxf3 {[%clk 00:13:40]} {[%emt
00:00:34]} Qd3+ {[%clk 00:26:19]} {[%emt 00:00:14]} 1/2-1/2

[Event "FIDE Grand Swiss 2023"]
[Site "Villa Marina, Douglas, Isle of Man, Isle Of Man"]
[Date "2023.10.26"]
[Round "2.32"]
[White "Akobian, Varuzhan"]
[Black "Grandelius, Nils"]
[Result "0-1"]
[TimeControl "40/90 + 30 + 30s/move"]
[WhiteFideId "13300580"]
[BlackFideId "1710400"]
[WhiteElo "2582"]
[BlackElo "2689"]

1. d4 {[%clk 01:40:55]} {[%emt 00:00:05]} d5 {[%clk 01:40:30]} {[%emt
00:00:30]} 2. c4 {[%clk 01:41:15]} {[%emt 00:00:10]} c6 {[%clk 01:40:13]}
{[%emt 00:00:47]} 3. cxd5 {[%clk 01:40:59]} {[%emt 00:00:47]} cxd5 {[%clk
01:40:31]} {[%emt 00:00:11]} 4. Nf3 {[%clk 01:41:24]} {[%emt 00:00:05]} Nf6
{[%clk 01:39:50]} {[%emt 00:01:10]} 5. Nc3 {[%clk 01:41:16]} {[%emt 00:00:38]}
Nc6 {[%clk 01:40:10]} {[%emt 00:00:10]} 6. Bf4 {[%clk 01:41:37]} {[%emt
00:00:08]} a6 {[%clk 01:39:19]} {[%emt 00:01:23]} 7. e3 {[%clk 01:40:28]}
{[%emt 00:01:39]} Bg4 {[%clk 01:38:06]} {[%emt 00:01:42]} 8. h3 {[%clk
01:40:47]} {[%emt 00:00:12]} Bxf3 {[%clk 01:38:17]} {[%emt 00:00:19]} 9. Qxf3
{[%clk 01:41:07]} {[%emt 00:00:09]} e6 {[%clk 01:38:40]} {[%emt 00:00:07]} 10.
Bd3 {[%clk 01:41:31]} {[%emt 00:00:06]} Bd6 {[%clk 01:38:15]} {[%emt 00:00:56]}
11. Bg5 {[%clk 01:41:49]} {[%emt 00:00:11]} Be7 {[%clk 01:38:08]} {[%emt
00:00:38]} 12. O-O {[%clk 01:41:45]} {[%emt 00:00:33]} O-O {[%clk 01:37:57]}
{[%emt 00:00:41]} 13. Rac1 {[%clk 01:39:17]} {[%emt 00:02:59]} Rc8 {[%clk
01:29:13]} {[%emt 00:09:14]} 14. Qe2 {[%clk 01:34:50]} {[%emt 00:04:56]} h6
{[%clk 01:17:43]} {[%emt 00:12:00]} 15. Bh4 {[%clk 01:32:33]} {[%emt 00:02:47]}
Ne4 {[%clk 01:01:58]} {[%emt 00:16:17]} 16. Bxe7 {[%clk 01:23:54]} {[%emt
00:09:08]} Nxc3 {[%clk 01:01:57]} {[%emt 00:00:31]} 17. Rxc3 {[%clk 01:19:36]}
{[%emt 00:04:48]} Nxe7 {[%clk 00:59:17]} {[%emt 00:03:09]} 18. Rfc1 {[%clk
01:17:07]} {[%emt 00:02:59]} Qd7 {[%clk 00:53:19]} {[%emt 00:06:29]} 19. Rc5
{[%clk 01:16:28]} {[%emt 00:01:09]} Rxc5 {[%clk 00:47:45]} {[%emt 00:06:04]} 20.
dxc5 {[%clk 01:08:24]} {[%emt 00:08:34]} Nc6 {[%clk 00:46:58]} {[%emt
00:01:17]} 21. a3 {[%clk 01:08:42]} {[%emt 00:00:11]} a5 {[%clk 00:43:27]}
{[%emt 00:04:01]} 22. Bb5 {[%clk 01:08:13]} {[%emt 00:00:59]} Qc7 {[%clk
00:42:00]} {[%emt 00:01:57]} 23. Ba4 {[%clk 01:02:02]} {[%emt 00:06:42]} Rd8
{[%clk 00:36:47]} {[%emt 00:05:43]} 24. Qd2 {[%clk 00:44:54]} {[%emt 00:17:37]}
d4 {[%clk 00:25:39]} {[%emt 00:11:40]} 25. Rd1 {[%emt 00:19:05]} Rd5 {[%clk
00:24:20]} 26. Bb3 {[%clk 00:19:35]} {[%emt 00:09:01]} dxe3 {[%clk 00:22:29]}
{[%emt 00:02:22]} 27. Qxe3 {[%clk 00:19:56]} {[%emt 00:00:09]} Re5 {[%clk
00:22:56]} {[%emt 00:00:03]} 28. Qc3 {[%clk 00:20:14]} {[%emt 00:00:12]} Qe7
{[%clk 00:23:03]} {[%emt 00:00:23]} 29. Rd6 {[%clk 00:10:41]} {[%emt 00:10:03]}
Qf6 {[%clk 00:17:01]} {[%emt 00:06:32]} 30. Ba4 {[%clk 00:06:15]} {[%emt
00:04:56]} Ne7 {[%clk 00:16:12]} {[%emt 00:01:19]} 31. Rd8+ {[%clk 00:05:50]}
{[%emt 00:00:55]} Kh7 {[%clk 00:16:41]} {[%emt 00:00:02]} 32. Bc2+ {[%clk
00:06:07]} {[%emt 00:00:12]} g6 {[%clk 00:08:54]} {[%emt 00:08:17]} 33. Rd7
{[%clk 00:06:32]} {[%emt 00:00:06]} Nc6 {[%clk 00:09:15]} {[%emt 00:00:08]} 34.
Rxb7 {[%clk 00:01:00]} {[%emt 00:06:02]} Nd4 {[%clk 00:09:33]} {[%emt
00:00:12]} 35. Bd3 {[%clk 00:00:40]} {[%emt 00:00:50]} Re2 {[%clk 00:08:00]}
{[%emt 00:02:03]} 36. Rxf7+ {[%clk 00:00:54]} {[%emt 00:00:17]} Qxf7 {[%clk
00:08:27]} {[%emt 00:00:02]} 37. Qxd4 {[%clk 00:01:21]} {[%emt 00:00:04]} e5
{[%clk 00:06:42]} {[%emt 00:02:14]} 38. Qh4 {[%clk 00:00:34]} {[%emt 00:01:16]}
Rxb2 {[%clk 00:05:08]} {[%emt 00:02:05]} 39. c6 {[%clk 00:00:57]} {[%emt
00:00:07]} Rd2 {[%clk 00:00:58]} {[%emt 00:04:39]} 40. Bc4 {[%clk 00:00:33]}
{[%emt 00:00:56]} Qc7 {[%clk 00:00:39]} {[%emt 00:00:48]} 41. Qf6 {[%clk
00:38:20]} {[%emt 00:12:43]} Rd6 {[%clk 00:28:54]} {[%emt 00:22:13]} 42. Qf8
{[%clk 00:38:12]} {[%emt 00:00:39]} Rd8 {[%clk 00:29:16]} {[%emt 00:00:09]} 43.
Qc5 {[%clk 00:29:05]} {[%emt 00:09:37]} Rd1+ {[%clk 00:28:02]} {[%emt
00:01:44]} 44. Kh2 {[%clk 00:28:23]} {[%emt 00:01:11]} h5 {[%clk 00:26:00]}
{[%emt 00:02:32]} 45. h4 {[%clk 00:23:55]} {[%emt 00:05:00]} Rd8 {[%clk
00:15:40]} {[%emt 00:10:48]} 46. Bd5 {[%clk 00:17:45]} {[%emt 00:06:41]} Re8
{[%clk 00:15:33]} {[%emt 00:00:37]} 47. g3 {[%clk 00:14:24]} {[%emt 00:03:51]}
Kg7 {[%clk 00:10:02]} {[%emt 00:06:00]} 48. Kg2 {[%clk 00:14:23]} {[%emt
00:00:32]} Re7 {[%clk 00:10:13]} {[%emt 00:00:19]} 49. Be4 {[%clk 00:13:28]}
{[%emt 00:01:25]} Rf7 {[%clk 00:10:02]} {[%emt 00:00:40]} 50. Kf1 {[%clk
00:09:31]} {[%emt 00:04:28]} Rf6 {[%clk 00:10:13]} {[%emt 00:00:19]} 51. Ke2
{[%clk 00:09:38]} {[%emt 00:00:23]} Rf7 {[%clk 00:10:22]} {[%emt 00:00:21]} 52.
Bd5 {[%clk 00:06:48]} {[%emt 00:03:20]} Rf6 {[%clk 00:10:42]} {[%emt 00:00:09]}
53. Qb5 {[%clk 00:05:27]} {[%emt 00:01:53]} Kh6 {[%clk 00:06:51]} {[%emt
00:04:21]} 54. f3 {[%clk 00:00:31]} {[%emt 00:05:25]} Rf8 {[%clk 00:03:05]}
{[%emt 00:04:15]} 55. Qb7 {[%clk 00:00:33]} {[%emt 00:00:29]} Qd6 {[%clk
00:03:33]} {[%emt 00:00:02]} 56. Qd7 {[%clk 00:00:32]} {[%emt 00:00:31]} Qxa3
{[%clk 00:01:47]} {[%emt 00:02:16]} 57. c7 {[%clk 00:00:43]} {[%emt 00:00:19]}
Qb2+ {[%clk 00:01:52]} {[%emt 00:00:24]} 58. Kf1 {[%clk 00:00:40]} {[%emt
00:00:34]} Qc1+ {[%clk 00:02:00]} {[%emt 00:00:22]} 59. Kg2 {[%clk 00:00:31]}
{[%emt 00:00:39]} Qd2+ {[%clk 00:01:05]} {[%emt 00:01:25]} 60. Kh3 {[%clk
00:00:50]} {[%emt 00:00:10]} Qd1 {[%clk 00:01:15]} {[%emt 00:00:20]} 61. Kg2
{[%clk 00:01:52]} {[%emt 00:14:29]} Rxf3 {[%clk 00:15:04]} {[%emt 00:01:41]} 62.
Qc6 {[%clk 00:02:04]} {[%emt 00:00:17]} Qf1+ {[%clk 00:15:13]} {[%emt
00:00:22]} 63. Kh2 {[%clk 00:02:33]} {[%emt 00:00:01]} Qf2+ {[%clk 00:15:35]}
{[%emt 00:00:08]} 64. Kh1 {[%clk 00:02:59]} {[%emt 00:00:04]} Qe1+ {[%clk
00:16:00]} {[%emt 00:00:05]} 0-1

[Event "FIDE Grand Swiss 2023"]
[Site "Villa Marina, Douglas, Isle of Man, Isle Of Man"]
[Date "2023.10.26"]
[Round "2.33"]
[White "Abasov, Nijat"]
[Black "Iturrizaga Bonelli, Eduardo"]
[Result "1-0"]
[TimeControl "40/90 + 30 + 30s/move"]
[WhiteFideId "13402960"]
[BlackFideId "3901211"]
[WhiteElo "2679"]
[BlackElo "2615"]

1. d4 {[%clk 01:40:58]} Nf6 {[%clk 01:40:55]} {[%emt 00:00:06]} 2. Nf3 {[%clk
01:41:20]} {[%emt 00:00:07]} c6 {[%clk 01:41:04]} {[%emt 00:00:21]} 3. Bf4
{[%clk 01:39:29]} {[%emt 00:02:21]} Qb6 {[%clk 01:39:38]} {[%emt 00:01:57]} 4.
b3 {[%clk 01:39:22]} {[%emt 00:00:36]} d6 {[%clk 01:38:36]} {[%emt 00:01:32]} 5.
Nbd2 {[%clk 01:36:20]} {[%emt 00:03:32]} Nh5 {[%clk 01:36:08]} {[%emt
00:02:59]} 6. Nc4 {[%clk 01:20:57]} {[%emt 00:15:52]} Qc7 {[%clk 01:34:59]}
{[%emt 00:01:40]} 7. Bd2 {[%clk 01:21:16]} {[%emt 00:00:11]} f5 {[%clk
01:20:32]} {[%emt 00:14:58]} 8. g3 {[%clk 01:19:19]} {[%emt 00:02:25]} g6
{[%clk 01:19:08]} {[%emt 00:01:54]} 9. Bg2 {[%clk 01:19:41]} {[%emt 00:00:08]}
Bg7 {[%clk 01:19:34]} {[%emt 00:00:05]} 10. O-O {[%clk 01:20:02]} {[%emt
00:00:08]} O-O {[%clk 01:16:11]} {[%emt 00:03:54]} 11. Qc1 {[%clk 01:18:33]}
{[%emt 00:01:58]} Re8 {[%clk 00:45:18]} {[%emt 00:31:23]} 12. Bh6 {[%clk
01:17:47]} {[%emt 00:01:15]} Bh8 {[%clk 00:44:22]} {[%emt 00:01:27]} 13. Re1
{[%clk 01:13:27]} {[%emt 00:04:50]} Nd7 {[%clk 00:43:19]} {[%emt 00:01:33]} 14.
e4 {[%clk 01:10:01]} {[%emt 00:03:56]} fxe4 {[%clk 00:38:25]} {[%emt 00:05:25]}
15. Rxe4 {[%clk 01:10:20]} {[%emt 00:00:11]} d5 {[%clk 00:37:38]} {[%emt
00:01:17]} 16. Rh4 {[%clk 01:08:41]} {[%emt 00:02:08]} Bf6 {[%clk 00:29:21]}
{[%emt 00:08:49]} 17. Rxh5 {[%clk 01:07:46]} {[%emt 00:01:24]} gxh5 {[%clk
00:29:47]} {[%emt 00:00:04]} 18. Bf4 {[%clk 01:04:28]} {[%emt 00:03:48]} Qd8
{[%clk 00:29:38]} {[%emt 00:00:39]} 19. Nce5 {[%clk 01:04:49]} {[%emt
00:00:08]} Nf8 {[%clk 00:24:41]} {[%emt 00:05:27]} 20. Ng5 {[%clk 01:00:40]}
{[%emt 00:04:39]} Ng6 {[%clk 00:22:32]} {[%emt 00:02:40]} 21. Bf3 {[%clk
00:49:31]} {[%emt 00:11:38]} Bxe5 {[%clk 00:07:34]} {[%emt 00:15:29]} 22. Bxe5
{[%clk 00:49:08]} {[%emt 00:00:53]} Rf8 {[%clk 00:06:01]} {[%emt 00:02:03]} 23.
Bxh5 {[%clk 00:47:21]} {[%emt 00:02:17]} Nxe5 {[%clk 00:06:21]} {[%emt
00:00:09]} 24. dxe5 {[%clk 00:47:46]} {[%emt 00:00:05]} Bf5 {[%clk 00:04:25]}
{[%emt 00:02:26]} 25. g4 {[%clk 00:45:29]} {[%emt 00:02:47]} Bg6 {[%clk
00:04:04]} {[%emt 00:00:52]} 26. Bxg6 {[%clk 00:34:41]} {[%emt 00:11:17]} hxg6
{[%clk 00:04:29]} {[%emt 00:00:05]} 27. Qe3 {[%clk 00:35:04]} {[%emt 00:00:07]}
Qb6 {[%clk 00:02:04]} {[%emt 00:02:55]} 28. Qg3 {[%clk 00:33:09]} {[%emt
00:02:25]} Qd4 {[%clk 00:00:51]} {[%emt 00:01:45]} 29. Rf1 {[%clk 00:30:26]}
{[%emt 00:03:11]} Rf7 {[%clk 00:00:31]} {[%emt 00:00:51]} 30. c3 {[%clk
00:26:45]} {[%emt 00:04:11]} Qd2 {[%clk 00:00:44]} {[%emt 00:00:17]} 31. Nxf7
{[%clk 00:26:17]} {[%emt 00:00:57]} Kxf7 {[%clk 00:01:10]} {[%emt 00:00:05]} 32.
f4 {[%clk 00:26:39]} {[%emt 00:00:07]} Rh8 {[%clk 00:00:32]} {[%emt 00:01:09]}
33. Rf2 {[%clk 00:25:51]} {[%emt 00:01:18]} Qe1+ {[%clk 00:00:52]} {[%emt
00:00:10]} 34. Kg2 {[%clk 00:26:16]} {[%emt 00:00:05]} e6 {[%clk 00:00:53]}
{[%emt 00:00:29]} 35. h3 {[%clk 00:24:26]} {[%emt 00:02:19]} a5 {[%clk
00:00:45]} {[%emt 00:00:39]} 36. Qd3 {[%clk 00:24:17]} {[%emt 00:00:38]} b5
{[%clk 00:00:35]} {[%emt 00:00:41]} 37. Qd4 {[%clk 00:23:07]} {[%emt 00:01:40]}
Re8 {[%clk 00:00:32]} {[%emt 00:00:33]} 38. a3 {[%clk 00:16:45]} {[%emt
00:06:52]} Re7 {[%clk 00:00:51]} {[%emt 00:00:11]} 39. b4 {[%clk 00:17:04]}
{[%emt 00:00:11]} a4 {[%clk 00:01:01]} {[%emt 00:00:20]} 40. Qd3 {[%clk
00:17:31]} {[%emt 00:00:02]} Qc1 {[%clk 00:00:40]} {[%emt 00:00:51]} 41. h4
{[%clk 00:15:35]} {[%emt 00:02:26]} Kg7 {[%clk 00:49:25]} {[%emt 00:01:46]} 42.
Rf1 {[%clk 00:48:35]} {[%emt 00:17:28]} Qb2+ {[%clk 00:31:16]} {[%emt
00:18:40]} 43. Rf2 {[%clk 00:43:08]} {[%emt 00:05:57]} Qc1 {[%clk 00:29:48]}
{[%emt 00:01:58]} 44. Rf1 {[%clk 00:25:35]} {[%emt 00:18:03]} Qb2+ {[%clk
00:29:44]} {[%emt 00:00:35]} 45. Kh3 {[%clk 00:21:36]} {[%emt 00:04:29]} Rf7
{[%clk 00:28:11]} {[%emt 00:02:02]} 46. h5 {[%clk 00:17:41]} {[%emt 00:04:24]}
gxh5 {[%clk 00:26:43]} {[%emt 00:01:59]} 47. gxh5 {[%clk 00:17:18]} {[%emt
00:00:53]} Rf5 {[%clk 00:27:01]} {[%emt 00:00:12]} 48. Rg1+ {[%clk 00:16:52]}
{[%emt 00:00:56]} Kf8 {[%clk 00:18:27]} {[%emt 00:09:04]} 49. Rg5 {[%clk
00:17:03]} {[%emt 00:00:19]} Rf7 {[%clk 00:10:33]} {[%emt 00:08:24]} 50. Qg3
{[%clk 00:16:35]} {[%emt 00:00:58]} Ke8 {[%clk 00:10:47]} {[%emt 00:00:17]} 51.
Rg8+ {[%clk 00:16:41]} {[%emt 00:00:23]} Kd7 {[%clk 00:11:10]} {[%emt
00:00:08]} 52. Qe3 {[%clk 00:16:48]} {[%emt 00:00:22]} 1-0